fUSD/lending_fUSD_20251129
["ID","MTS","AMOUNT","RATE_DAILY","PERIOD"]
[395065650,1764396493238,-277.50242414,0.00015927,2]
[395065651,1764396493248,-500.0,0.00015927,2]
[395065652,1764396493258,-151.0,0.00015927,2]
[395065653,1764396493267,-500.0,0.00015927,2]
[395065654,1764396493277,-151.0,0.00015927,2]
[395065655,1764396493287,-500.0,0.00015927,2]
[395065656,1764396493296,-500.0,0.00015927,2]
[395065657,1764396493306,-500.0,0.00015927,2]
[395065658,1764396493315,-500.0,0.00015927,2]
[395065659,1764396493325,-529.43708906,0.00015927,2]
[395065660,1764396493335,-500.0,0.00015927,2]
[395065661,1764396493344,-500.0,0.00015927,2]
[395065662,1764396493353,-500.0,0.00015927,2]
[395065663,1764396493363,-500.0,0.00015927,2]
[395065664,1764396493372,-200.0,0.00015927,2]
[395065665,1764396493381,-28.38169177,0.00015927,2]
[395065666,1764396493428,-471.61830823,0.00015927,2]
[395065667,1764396493437,-500.0,0.00015927,2]
[395065668,1764396493446,-250.0,0.00015927,2]
[395065669,1764396493455,-500.0,0.00015927,2]
[395065670,1764396493465,-250.0,0.00015927,2]
[395065671,1764396493473,-500.0,0.00015927,2]
[395065672,1764396493482,-250.0,0.00015927,2]
[395065673,1764396493492,-500.0,0.00015927,2]
[395065674,1764396493501,-250.0,0.00015927,2]
[395065675,1764396493511,-181.22413292,0.00015927,2]
[395065676,1764396493520,-250.0,0.00015927,2]
[395065677,1764396493529,-250.0,0.00015927,2]
[395065678,1764396493538,-250.0,0.00015927,2]
[395065679,1764396493548,-300.24495868,0.00015927,2]
[395065680,1764396493558,-500.0,0.00015927,2]
[395065681,1764396493567,-500.0,0.00015927,2]
[395065682,1764396493576,-500.0,0.00015927,2]
[395065683,1764396493585,-500.0,0.00015927,2]
[395065684,1764396493594,-500.0,0.00015927,2]
[395065685,1764396493604,-500.0,0.00015927,2]
[395065686,1764396493613,-500.0,0.00015927,2]
[395065687,1764396493623,-500.0,0.00015927,2]
[395065688,1764396493632,-200.0,0.00015927,2]
[395065689,1764396493641,-500.0,0.00015927,2]
[395065690,1764396493650,-500.0,0.00015927,2]
[395065691,1764396493659,-96.60260017,0.00015927,2]
[395065692,1764396493684,-403.39739983,0.00015927,2]
[395065693,1764396493693,-500.0,0.00015927,2]
[395065694,1764396493703,-500.0,0.00015927,2]
[395065695,1764396493712,-500.0,0.00015927,2]
[395065696,1764396493721,-257.7974173,0.00015927,2]
[395065697,1764396493730,-500.0,0.00015927,2]
[395065698,1764396493739,-500.0,0.00015927,2]
[395065699,1764396493747,-500.0,0.00015927,2]
[395065700,1764396493756,-500.0,0.00015927,2]
[395065701,1764396493765,-500.0,0.00015927,2]
[395065702,1764396493774,-481.579704,0.00015927,2]
[395065703,1764396493812,-18.420296,0.00015927,2]
[395065704,1764396493821,-500.0,0.00015927,2]
[395065705,1764396493830,-409.03178365,0.00015927,2]
[395065706,1764396493847,-90.96821635,0.00015927,2]
[395065707,1764396493856,-209.02178365,0.00015927,2]
[395065708,1764396493871,-290.97821635,0.00015927,2]
[395065709,1764396493880,-500.0,0.00015927,2]
[395065710,1764396493890,-151.0,0.00015927,2]
[395065711,1764396493901,-151.0,0.00015927,2]
[395065712,1764396493911,-151.0,0.00015927,2]
[395065713,1764396493921,-151.0,0.00015927,2]
[395065714,1764396493930,-151.0,0.00015927,2]
[395065715,1764396493940,-151.0,0.00015927,2]
[395065716,1764396493949,-151.0,0.00015927,2]
[395065717,1764396493959,-151.0,0.00015927,2]
[395065718,1764396493968,-151.0,0.00015927,2]
[395065719,1764396493978,-151.0,0.00015927,2]
[395065720,1764396493988,-151.0,0.00015927,2]
[395065721,1764396493998,-151.0,0.00015927,2]
[395065722,1764396494007,-151.0,0.00015927,2]
[395065723,1764396494017,-200.0,0.00015927,2]
[395065724,1764396494026,-151.0,0.00015927,2]
[395065725,1764396494035,-151.0,0.00015927,2]
[395065726,1764396494045,-247.32178365,0.00015927,2]
[395065727,1764396494060,-252.67821635,0.00015927,2]
[395065728,1764396494069,-285.84762435,0.00015927,2]
[395065729,1764396548367,1825.47852,7.945e-05,2]
[395065737,1764396631678,-626.31575954,0.00015066,2]
[395065751,1764396632007,-373.68424046,0.00015066,2]
[395065752,1764396632018,-213.0,0.00015092,2]
[395065753,1764396632029,-500.0,0.00015092,2]
[395065754,1764396632039,-3295.72090794,0.00015836,2]
[395065755,1764396632049,-12448.25689206,0.00015836,2]
[395065756,1764396632059,-1000.0,0.00015837,2]
[395065757,1764396632068,-1591.91803925,0.00015837,2]
[395065758,1764396632077,-7000.0,0.0001589,2]
[395065759,1764396632087,-300.0,0.00015926,2]
[395065760,1764396632096,-300.0,0.00015926,2]
[395065761,1764396632105,-300.0,0.00015926,2]
[395065762,1764396632114,-1200.0,0.00015926,2]
[395065763,1764396632123,-200.0,0.00015927,2]
[395065764,1764396632132,-214.15237565,0.00015927,2]
[395065765,1764396632141,-500.0,0.00015927,2]
[395065766,1764396632150,-500.0,0.00015927,2]
[395065767,1764396632159,-500.0,0.00015927,2]
[395065768,1764396632168,-500.0,0.00015927,2]
[395065769,1764396632177,-500.0,0.00015927,2]
[395065770,1764396632186,-500.0,0.00015927,2]
[395065771,1764396632195,-500.0,0.00015927,2]
[395065772,1764396632205,-500.0,0.00015927,2]
[395065773,1764396632214,-500.0,0.00015927,2]
[395065774,1764396632223,-500.0,0.00015927,2]
[395065775,1764396632236,-248.94687703,0.00015936,2]
[395065776,1764396632246,-182.3737049,0.00015936,2]
[395065777,1764396632257,-500.0,0.00015936,2]
[395065778,1764396632266,-243.19360319,0.00015936,2]
[395065779,1764396632276,-363.39152048,0.00015936,2]
[395065780,1764396632285,-500.0,0.00015936,2]
[395065781,1764396632295,-500.0,0.00015936,2]
[395065782,1764396632304,-500.0,0.00015936,2]
[395065783,1764396632314,-500.0,0.00015936,2]
[395065784,1764396632323,-500.0,0.00015936,2]
[395065785,1764396632333,-602.77051481,0.00015936,2]
[395065786,1764396632343,-500.0,0.00015936,2]
[395065787,1764396632352,-500.0,0.00015936,2]
[395065788,1764396632362,-500.0,0.00015936,2]
[395065789,1764396632372,-500.0,0.00015936,2]
[395065790,1764396632381,-500.0,0.00015936,2]
[395065791,1764396632391,-500.0,0.00015936,2]
[395065792,1764396632401,-500.0,0.00015936,2]
[395065793,1764396632410,-500.0,0.00015936,2]
[395065794,1764396632420,-500.0,0.00015936,2]
[395065795,1764396632431,-500.0,0.00015936,2]
[395065796,1764396632441,-500.0,0.00015936,2]
[395065797,1764396632450,-500.0,0.00015936,2]
[395065798,1764396632460,-639.35257818,0.00015936,2]
[395065799,1764396632469,-189.73300166,0.00015936,2]
[395065800,1764396632478,-500.0,0.00015936,2]
[395065801,1764396632488,-471.43794341,0.00015936,2]
[395065802,1764396632497,-500.0,0.00015936,2]
[395065803,1764396632506,-500.0,0.00015936,2]
[395065804,1764396632516,-325.75124095,0.00015936,2]
[395065805,1764396632525,-57947.15820352,0.00015937,2]
[395065806,1764396632542,-26805.20949924,0.00015937,2]
[395065807,1764396632553,-822.10562034,0.00015937,2]
[395065808,1764396632607,-9000.0,0.00015937,2]
[395065811,1764396637757,-1245.01488991,0.00015837,2]
[395065812,1764396637802,-8332.20757486,0.00015837,2]
[395065813,1764396637811,-28524.67544983,0.00015937,2]
[395065822,1764396639525,-319640.96542707,0.00015937,2]
[395065823,1764396639538,-1319.34,0.00015937,2]
[395065824,1764396639547,-170.65345137,0.00015946,2]
[395065825,1764396639557,-37912.61673991,0.00015971,2]
[395065826,1764396639566,-600.0,0.00015971,2]
[395065827,1764396639576,-500.0,0.00015973,2]
[395065828,1764396639586,-419.0050136,0.00015973,2]
[395065829,1764396639595,-201.41300621,0.00015973,2]
[395065830,1764396639604,-187.64438625,0.00015973,2]
[395065831,1764396639614,-500.0,0.00015973,2]
[395065832,1764396639625,-500.0,0.00015973,2]
[395065833,1764396639634,-500.0,0.00015973,2]
[395065834,1764396639643,-500.0,0.00015973,2]
[395065835,1764396639654,-500.0,0.00015973,2]
[395065836,1764396639664,-298.18,0.00015996,2]
[395065837,1764396639676,-2230.0,0.0001602,2]
[395065838,1764396639686,-9154.66965579,0.00016036,2]
[395065839,1764396639696,-289.41015911,0.00016036,2]
[395065840,1764396639707,-500.0,0.00016036,2]
[395065841,1764396639716,-79272.1622613,0.00016037,2]
[395065842,1764396639726,-11471.952653,0.00016037,2]
[395065843,1764396639737,-14913.92720986,0.00016037,2]
[395065844,1764396639771,-102182.51813214,0.00016037,2]
[395065845,1764396639780,-366.48482164,0.00016037,2]
[395065846,1764396639791,-913.53,0.00016037,2]
[395065847,1764396639824,-896.12657646,0.00016037,2]
[395065848,1764396639834,-6400.0761967,0.00016037,2]
[395065849,1764396639844,-3092.9707525,0.00016037,2]
[395065850,1764396639854,-45981.42632188,0.00016046,2]
[395065851,1764396639867,-1101.49564475,0.00016046,2]
[395065852,1764396639877,-172.65592081,0.00016046,2]
[395065853,1764396639886,-2230.0,0.00016046,2]
[395065854,1764396639895,-1000.0,0.00016073,2]
[395065855,1764396639904,-595.07469987,0.00016073,2]
[395065856,1764396639914,-1345.18251605,0.00016073,2]
[395065857,1764396639923,-200.0,0.00016086,2]
[395065858,1764396639934,-11626.33401811,0.00016095,2]
[395065859,1764396639944,-1000.0,0.000161,2]
[395065860,1764396639953,-1601.2,0.00016106,2]
[395065861,1764396639962,-151.0,0.00016116,2]
[395065862,1764396639971,-151.0,0.00016116,2]
[395065863,1764396639980,-726.73,0.00016116,2]
[395065864,1764396639989,-1762.0,0.00016145,2]
[395065865,1764396639999,-519.4667205,0.00016162,2]
[395065866,1764396640008,-547.40314688,0.00016172,2]
[395065867,1764396640017,-217.441849,0.00016173,2]
[395065868,1764396640027,-151.0,0.00016173,2]
[395065869,1764396640036,-151.0,0.00016173,2]
[395065870,1764396640045,-151.0,0.00016173,2]
[395065871,1764396640054,-151.0,0.00016173,2]
[395065872,1764396640066,-3319.64159331,0.00016175,2]
[395065873,1764396640075,-2230.0,0.00016183,2]
[395065874,1764396640085,-1000.0,0.000162,2]
[395065875,1764396640095,-1000.0,0.000162,2]
[395065876,1764396640104,-1000.0,0.000162,2]
[395065878,1764396640114,-1000.0,0.000162,2]
[395065879,1764396640123,-1000.0,0.000162,2]
[395065880,1764396640132,-36.18211297,0.000162,2]
[395065883,1764396640215,-963.81788703,0.000162,2]
[395065884,1764396640225,-1000.0,0.000162,2]
[395065885,1764396640546,-170.73850619,0.000162,2]
[395065886,1764396640582,-748.48157723,0.000162,2]
[395065887,1764396640594,-80.77991658,0.000162,2]
[395065888,1764396640603,-828.23008342,0.000162,2]
[395065893,1764396642910,-3481.16016373,0.00015955,2]
[395065902,1764397552596,8174.53148,0.000146,2]
[395065903,1764397552621,1242.04650856,0.000146,2]
[395065945,1764397832744,-200.0,0.00014752,2]
[395065946,1764397832754,-210.0,0.00014752,2]
[395065947,1764397832763,-180.54626403,0.00014773,2]
[395065948,1764397832772,-150.0,0.00014795,2]
[395065949,1764397832781,-250.0,0.00014812,2]
[395065950,1764397832791,-101.25605693,0.0001483,2]
[395065951,1764397832805,-95.45479738,0.0001483,2]
[395065952,1764397832814,-610.0,0.00014836,2]
[395065953,1764397832823,-250.0,0.00014872,2]
[395065954,1764397832834,-3849.079914,0.0001493,2]
[395065955,1764397832845,-787.61,0.00015106,2]
[395065956,1764397832854,-196.71085429,0.00015227,2]
[395065957,1764397832863,-166.66,0.00015269,2]
[395065958,1764397832872,-250.0,0.00015288,2]
[395065959,1764397832882,-164.0,0.00015464,2]
[395065960,1764397832891,-174.0,0.00015541,2]
[395065961,1764397832901,-292.92,0.00015597,2]
[395065962,1764397832910,-1200.0,0.00015623,2]
[395065963,1764397832920,-196.71085429,0.00015624,2]
[395065964,1764397832929,-300.0,0.00015626,2]
[395065965,1764397832937,-999.99,0.00015628,2]
[395065966,1764397832946,-666.0,0.00015628,2]
[395065967,1764397832956,-151.0,0.00015628,2]
[395065968,1764397832965,-300.0,0.00015628,2]
[395065969,1764397832973,-156.587,0.00015628,2]
[395065970,1764397832984,-162.380719,0.00015628,2]
[395065971,1764397832993,-151.33087578,0.00015628,2]
[395065972,1764397833002,-267.46074303,0.00015628,2]
[395065973,1764397833012,-300.0,0.00015635,2]
[395065974,1764397833021,-3220.86182828,0.00015636,2]
[395065975,1764397833032,-2532.10146064,0.00015636,2]
[395065976,1764397833058,-1472.54539907,0.00015636,2]
[395065977,1764397833135,-924.03708931,0.00015636,2]
[395065978,1764397833175,-324.59617748,0.00015636,2]
[395065979,1764397837744,-862.09077458,0.00015636,2]
[395065980,1764397837755,-474.83874936,0.00015636,2]
[395065981,1764397837804,-3234.24970126,0.00015636,2]
[395065982,1764397837888,-1811.16,0.00015636,2]
[395065994,1764397839773,-11421.19281299,0.00015636,2]
[395065995,1764397839784,-1930.73770265,0.00015636,2]
[395066000,1764397839882,-7627.29180438,0.00015636,2]
[395066002,1764397839891,-8436.29362381,0.00015675,2]
[395066004,1764397839900,-9999.99,0.00015725,2]
[395066006,1764397839909,-1863.9,0.00015725,2]
[395066008,1764397839918,-150.99,0.00015728,2]
[395066010,1764397839929,-500.0,0.00015728,2]
[395066012,1764397839939,-500.0,0.00015728,2]
[395066014,1764397839949,-500.0,0.00015728,2]
[395066016,1764397839958,-500.0,0.00015728,2]
[395066018,1764397839967,-500.0,0.00015728,2]
[395066020,1764397839976,-500.0,0.00015728,2]
[395066022,1764397839985,-500.0,0.00015728,2]
[395066024,1764397839994,-500.0,0.00015728,2]
[395066026,1764397840004,-500.0,0.00015728,2]
[395066029,1764397840015,-500.0,0.00015728,2]
[395066031,1764397840024,-500.0,0.00015728,2]
[395066033,1764397840034,-500.0,0.00015728,2]
[395066034,1764397840043,-572.33665835,0.00015735,2]
[395066036,1764397840053,-182.99125949,0.00015735,2]
[395066037,1764397840064,-500.0,0.00015735,2]
[395066038,1764397840074,-500.0,0.00015735,2]
[395066039,1764397840083,-500.0,0.00015735,2]
[395066040,1764397840092,-500.0,0.00015735,2]
[395066041,1764397840102,-500.0,0.00015735,2]
[395066043,1764397840111,-375.03759724,0.00015735,2]
[395066045,1764397840120,-500.0,0.00015735,2]
[395066046,1764397840129,-500.0,0.00015735,2]
[395066047,1764397840137,-610.27705148,0.00015735,2]
[395066048,1764397840146,-500.0,0.00015735,2]
[395066049,1764397840157,-500.0,0.00015735,2]
[395066050,1764397840167,-500.0,0.00015735,2]
[395066051,1764397840176,-500.0,0.00015735,2]
[395066052,1764397840184,-500.0,0.00015735,2]
[395066053,1764397840194,-500.0,0.00015735,2]
[395066054,1764397840203,-500.0,0.00015735,2]
[395066055,1764397840215,-500.0,0.00015735,2]
[395066056,1764397840230,-500.0,0.00015735,2]
[395066057,1764397840242,-500.0,0.00015735,2]
[395066058,1764397840252,-500.0,0.00015735,2]
[395066059,1764397840262,-500.0,0.00015735,2]
[395066060,1764397840271,-500.0,0.00015735,2]
[395066061,1764397840280,-500.0,0.00015735,2]
[395066062,1764397840290,-500.0,0.00015735,2]
[395066063,1764397840299,-500.0,0.00015735,2]
[395066064,1764397840310,-389.80938959,0.00015735,2]
[395066065,1764397840319,-9090.65,0.00015736,2]
[395066066,1764397840328,-64229.98,0.00015736,2]
[395066067,1764397840337,-30000.0,0.00015737,2]
[395066068,1764397840346,-626.77744978,0.00015737,2]
[395066069,1764397840357,-165.69,0.00015775,2]
[395066070,1764397840366,-2289.153,0.00015775,2]
[395066071,1764397840375,-1425.0,0.00015775,2]
[395066072,1764397840389,-1425.0,0.00015804,2]
[395066073,1764397840399,-2532.1015,0.00015808,2]
[395066074,1764397840408,-8436.29362373,0.00015811,2]
[395066075,1764397840418,-200.0,0.00015818,2]
[395066076,1764397840427,-500.0,0.00015818,2]
[395066077,1764397840437,-553.64373807,0.00015818,2]
[395066078,1764397840446,-500.0,0.00015818,2]
[395066079,1764397840455,-200.0,0.00015818,2]
[395066080,1764397840464,-151.0,0.00015818,2]
[395066081,1764397840473,-500.0,0.00015818,2]
[395066082,1764397840482,-500.0,0.00015818,2]
[395066083,1764397840492,-500.0,0.00015818,2]
[395066084,1764397840501,-500.0,0.00015818,2]
[395066085,1764397840512,-500.0,0.00015818,2]
[395066086,1764397840521,-236.46187687,0.00015818,2]
[395066087,1764397840530,-500.0,0.00015818,2]
[395066088,1764397840538,-500.0,0.00015818,2]
[395066089,1764397840547,-153.80274994,0.00015818,2]
[395066090,1764397840556,-500.0,0.00015818,2]
[395066091,1764397840565,-373.07297731,0.00015818,2]
[395066092,1764397840574,-500.0,0.00015818,2]
[395066093,1764397840583,-500.0,0.00015818,2]
[395066094,1764397840591,-212.25560341,0.00015818,2]
[395066095,1764397840600,-151.0,0.00015818,2]
[395066096,1764397840610,-500.0,0.00015818,2]
[395066097,1764397840619,-500.0,0.00015818,2]
[395066098,1764397840628,-500.0,0.00015818,2]
[395066099,1764397840639,-500.0,0.00015818,2]
[395066100,1764397840649,-500.0,0.00015818,2]
[395066101,1764397840658,-500.0,0.00015818,2]
[395066102,1764397840669,-500.0,0.00015818,2]
[395066103,1764397840678,-151.0,0.00015818,2]
[395066104,1764397840687,-151.0,0.00015818,2]
[395066105,1764397840698,-151.0,0.00015818,2]
[395066106,1764397840708,-151.0,0.00015818,2]
[395066107,1764397840718,-151.0,0.00015818,2]
[395066108,1764397840727,-151.0,0.00015818,2]
[395066109,1764397840736,-151.0,0.00015818,2]
[395066110,1764397840745,-151.0,0.00015818,2]
[395066111,1764397840755,-151.0,0.00015818,2]
[395066112,1764397840765,-151.0,0.00015818,2]
[395066113,1764397840774,-151.0,0.00015818,2]
[395066114,1764397840783,-151.0,0.00015818,2]
[395066115,1764397840792,-1492.82,0.00015827,2]
[395066116,1764397840805,-262.1819,0.00015827,2]
[395066117,1764397840816,-289.41015911,0.00015836,2]
[395066118,1764397840826,-500.0,0.00015836,2]
[395066119,1764397840836,-500.0,0.00015836,2]
[395066120,1764397840845,-500.0,0.00015836,2]
[395066121,1764397840855,-500.0,0.00015836,2]
[395066122,1764397840864,-600.0,0.00015837,2]
[395066123,1764397840873,-1000.0,0.00015837,2]
[395066124,1764397840883,-1425.0,0.00015838,2]
[395066125,1764397840902,-1153.01358522,0.000159,2]
[395066126,1764397840912,-171.76991658,0.000159,2]
[395066127,1764397840921,-1000.0,0.000159,2]
[395066128,1764397840931,-1123.0,0.000159,2]
[395066129,1764397840939,-1413.94458011,0.000159,2]
[395066130,1764397840948,-1425.0,0.00015914,2]
[395066131,1764397840958,-159.91756567,0.00015936,2]
[395066132,1764397840967,-8436.29362373,0.00015947,2]
[395066133,1764397840976,-6300.00389924,0.0001597,2]
[395066134,1764397840985,-500.0,0.00015973,2]
[395066135,1764397840995,-500.0,0.00015973,2]
[395066136,1764397841004,-500.0,0.00015973,2]
[395066137,1764397841014,-500.0,0.00015973,2]
[395066138,1764397841022,-500.0,0.00015973,2]
[395066139,1764397841031,-1425.0,0.00015978,2]
[395066140,1764397841040,-151.0,0.00015995,2]
[395066141,1764397841049,-154.814095,0.00015995,2]
[395066142,1764397841058,-151.0,0.00015995,2]
[395066143,1764397841067,-1000.0,0.00015999,2]
[395066144,1764397841076,-500.0,0.00015999,2]
[395066145,1764397841085,-170.53513361,0.00015999,2]
[395066146,1764397841094,-288.88116533,0.00015999,2]
[395066147,1764397841103,-500.0,0.00015999,2]
[395066148,1764397841112,-307.07591509,0.00015999,2]
[395066149,1764397841121,-589.67119121,0.00015999,2]
[395066150,1764397841131,-168253.90376292,0.00016,2]
[395066241,1764397844255,-35803.08200715,0.00016,2]
[395066243,1764397844265,-151.0,0.00016,2]
[395066245,1764397844274,-163.91029,0.00016,2]
[395066247,1764397844283,-151.0,0.00016,2]
[395066249,1764397844294,-151.0,0.00016,2]
[395066251,1764397844303,-151.0,0.00016,2]
[395066253,1764397844313,-258.931808,0.00016,2]
[395066255,1764397844322,-151.0,0.00016,2]
[395066257,1764397844331,-151.0,0.00016,2]
[395066259,1764397844341,-151.0,0.00016,2]
[395066261,1764397844350,-151.0,0.00016,2]
[395066263,1764397844360,-151.0,0.00016,2]
[395066265,1764397844369,-151.0,0.00016,2]
[395066267,1764397844379,-151.0,0.00016,2]
[395066269,1764397844388,-151.0,0.00016,2]
[395066271,1764397844397,-3653.242159,0.00016,2]
[395066273,1764397844406,-3653.242159,0.00016,2]
[395066275,1764397844415,-3653.242159,0.00016,2]
[395066277,1764397844424,-3653.242159,0.00016,2]
[395066279,1764397844433,-151.0,0.00016,2]
[395066281,1764397844442,-151.0,0.00016,2]
[395066283,1764397844450,-142127.08751386,0.00016,4]
[395066296,1764397844559,-1813.9656877,0.00016,4]
[395066420,1764397845738,-1342.12278365,0.00016,4]
[395066428,1764397845801,-428.92058211,0.00016,4]
[395066430,1764397845812,-1949.52,0.00016,4]
[395066432,1764397845823,-1252.52304619,0.00016,4]
[395066434,1764397845834,-334.77401808,0.00016,4]
[395066453,1764397846002,-671.03708354,0.00016,4]
[395066456,1764397846013,-262.4679996,0.00016,4]
[395072090,1764398421141,1557.73,7.423e-05,2]
[395072091,1764398421406,1557.73,7.814e-05,2]
[395072092,1764398421554,1557.73,8.204e-05,2]
[395072093,1764398421976,1557.73,8.595e-05,2]
[395072094,1764398422093,1557.73,8.986e-05,2]
[395072095,1764398422199,1557.73,9.377e-05,2]
[395072096,1764398422375,653.63,9.767e-05,2]
[395072097,1764398422399,904.1,9.767e-05,2]
[395072098,1764398422575,1557.73,0.00010158,2]
[395072099,1764398422781,1557.73,0.00010549,2]
[395072100,1764398422988,1557.73,0.00010939,2]
[395072101,1764398423187,1557.73,0.0001133,2]
[395072102,1764398423376,1557.73,0.00011721,2]
[395072103,1764398423680,1307.26,0.00012111,2]
[395072104,1764398423705,250.47,0.00012111,2]
[395072105,1764398423818,1557.73,0.00012502,2]
[395072106,1764398424002,1557.73,0.00012893,2]
[395072107,1764398424184,1557.73,0.00013283,2]
[395072108,1764398424372,1557.73,0.00013674,2]
[395072109,1764398424566,1557.73,0.00014065,2]
[395072110,1764398424768,1557.73,0.00014455,2]
[395072111,1764398471953,202.39,0.00011864,2]
[395072112,1764398520059,152.17,0.00019178,30]
[395072117,1764398698413,200.77,0.00014709,2]
[395072118,1764398698437,9822.23,0.00014709,2]
[395072119,1764398721611,150.0,0.00014647,2]
[395072120,1764398721675,27.78,0.00014647,2]
[395072121,1764398721701,135.98965775,0.00014647,2]
[395072122,1764398722540,150.0,0.00014647,2]
[395072123,1764398729099,150.0,0.00014647,2]
[395072124,1764398735325,150.0,0.00014647,2]
[395072125,1764398736856,150.0,0.00014647,2]
[395072126,1764398736929,150.0,0.00014647,2]
[395072127,1764398737004,260.76603447,0.00014647,2]
[395072128,1764398738824,150.0,0.00014647,2]
[395072129,1764398745471,150.0,0.00014647,2]
[395072130,1764398745566,150.0,0.00014647,2]
[395072140,1764398958088,290.05,0.00014542,2]
[395072141,1764399007983,156.30514906,0.00022,30]
[395072142,1764399028983,166.66,0.00013835,2]
[395072143,1764399029186,166.66,0.00014126,2]
[395072144,1764399029395,166.66,0.00014417,2]
[395072145,1764399029604,166.66,0.00014709,2]
[395072150,1764399031890,-210.0,0.00014801,2]
[395072151,1764399031900,-150.0,0.00014801,2]
[395072152,1764399031909,-223.63247807,0.00014801,2]
[395072153,1764399031922,-26.36752193,0.00014801,2]
[395072154,1764399031931,-212.12966823,0.00014801,2]
[395072155,1764399031940,-1557.73,0.00014846,2]
[395072156,1764399031949,-999.0,0.00014941,3]
[395072157,1764399031960,-150.0,0.00014975,2]
[395072158,1764399031969,-3408.32,0.00014989,2]
[395072159,1764399031978,-2.17427324,0.00015,2]
[395072160,1764399031989,-164.48572676,0.00015,2]
[395072161,1764399031999,-200.0,0.00015,2]
[395072162,1764399032008,-300.0,0.00015097,2]
[395072163,1764399032017,-1169.78262685,0.00015097,2]
[395072164,1764399032040,-30.21737315,0.00015097,2]
[395072165,1764399032049,-165.691,0.000151,2]
[395072166,1764399032058,-492.81162685,0.000151,2]
[395072167,1764399032096,-1338.51037315,0.000151,2]
[395072168,1764399032105,-300.0,0.000151,2]
[395072169,1764399032115,-49501.68832861,0.00015101,2]
[395072172,1764399032272,-228.94167139,0.00015101,2]
[395072173,1764399032283,-71.05832861,0.00015101,2]
[395072174,1764399032296,-177.85167139,0.00015101,2]
[395072175,1764399032305,-150.99,0.00015101,2]
[395072176,1764399032314,-301.91172435,0.00015101,2]
[395072177,1764399032326,-27021.09827565,0.00015101,2]
[395072178,1764399032335,-1190.92,0.00015101,2]
[395072179,1764399032344,-1232.08,0.00015166,2]
[395072180,1764399032353,-999.99,0.00015166,2]
[395072181,1764399032363,-166.66,0.00015291,2]
[395072182,1764399032373,-290.05,0.0001535,2]
[395072183,1764399032383,-300.0,0.00015367,2]
[395072184,1764399032395,-267.46074303,0.00015367,2]
[395072185,1764399032403,-666.0,0.00015367,2]
[395072186,1764399032412,-564.09970482,0.00015435,2]
[395072187,1764399032422,-500.0,0.00015526,2]
[395072188,1764399032432,-214.95314056,0.00015526,2]
[395072189,1764399032441,-524895.65075537,0.00015527,2]
[395072190,1764399032454,-37009.91820388,0.00015527,2]
[395072191,1764399032464,-38025.30106552,0.00015527,2]
[395072192,1764399032475,-63683.6359599,0.00015527,2]
[395072193,1764399032486,-482.13,0.00015527,2]
[395072194,1764399032513,-787.27893922,0.00015527,2]
[395072195,1764399032895,-274.92000001,0.00015526,2]
[395072196,1764399032907,-39.83715022,0.00015526,2]
[395072197,1764399032917,-863.77049344,0.00015527,2]
[395072198,1764399033027,-343.24244796,0.00015527,2]